[Event "*** Qualifier 4: Titled Tuesday 3|2 Blitz"]
[Site "Chess.com"]
[Date "2017.04.25"]
[Round "9"]
[White "Fandorine"]
[Black "GMHess"]
[Result "0-1"]
[WhiteElo "2696"]
[BlackElo "2596"]
[TimeControl "180+2"]
[EndTime "14:59:42 PDT"]
[Termination "GMHess won by resignation"]

1. e4 {[%clk 0:03:02]} 1... e5 {[%clk 0:02:56.5]} 2. Nf3 {[%clk 0:03:03]} 2...
Nc6 {[%clk 0:02:57.3]} 3. Bb5 {[%clk 0:03:04.6]} 3... a6 {[%clk 0:02:57.8]} 4.
Ba4 {[%clk 0:03:05.3]} 4... b5 {[%clk 0:02:58.8]} 5. Bb3 {[%clk 0:03:06.3]} 5...
Na5 {[%clk 0:03:00.1]} 6. d4 {[%clk 0:02:50]} 6... Nxb3 {[%clk 0:02:55.9]} 7.
axb3 {[%clk 0:02:51.9]} 7... exd4 {[%clk 0:02:48.7]} 8. Qxd4 {[%clk 0:02:53.1]}
8... Bb7 {[%clk 0:02:44.9]} 9. Bg5 {[%clk 0:02:44.5]} 9... Ne7 {[%clk
0:02:19.4]} 10. O-O {[%clk 0:02:32.5]} 10... d5 {[%clk 0:01:57.8]} 11. exd5
{[%clk 0:02:23.4]} 11... Qxd5 {[%clk 0:01:55.9]} 12. Qf4 {[%clk 0:01:39.3]}
12... Ng6 {[%clk 0:00:47.1]} 13. Re1+ {[%clk 0:01:25.7]} 13... Kd7 {[%clk
0:00:36.9]} 14. Qg4+ {[%clk 0:01:16.1]} 14... f5 {[%clk 0:00:38.1]} 15. Qh3
{[%clk 0:01:17.3]} 15... Bd6 {[%clk 0:00:37.7]} 16. Nc3 {[%clk 0:01:16.9]} 16...
Qf7 {[%clk 0:00:38.8]} 17. Rad1 {[%clk 0:01:14]} 17... h6 {[%clk 0:00:31.7]} 18.
Be7 {[%clk 0:01:12.1]} 18... Bxf3 {[%clk 0:00:24.2]} 19. Rxd6+ {[%clk
0:00:22.6]} 19... cxd6 {[%clk 0:00:25.3]} 20. Qxf3 {[%clk 0:00:24.3]} 20... Rac8
{[%clk 0:00:16.3]} 21. Qb7+ {[%clk 0:00:13.2]} 21... Rc7 {[%clk 0:00:17.4]} 22.
Qxa6 {[%clk 0:00:14.9]} 22... Nxe7 {[%clk 0:00:18.6]} 23. Nxb5 {[%clk
0:00:16.3]} 23... Nc8 {[%clk 0:00:13.1]} 24. Nxc7 {[%clk 0:00:13.4]} 24... Kxc7
{[%clk 0:00:15]} 25. Qa5+ {[%clk 0:00:13.5]} 25... Kb8 {[%clk 0:00:13.1]} 26.
Qb5+ {[%clk 0:00:15]} 26... Qb7 {[%clk 0:00:13.8]} 27. Qxf5 {[%clk 0:00:16.6]}
27... Rd8 {[%clk 0:00:12.2]} 28. h3 {[%clk 0:00:18]} 28... d5 {[%clk 0:00:12]}
29. Rd1 {[%clk 0:00:15.1]} 29... Rd6 {[%clk 0:00:12.9]} 30. Qe5 {[%clk
0:00:14.5]} 30... Qe7 {[%clk 0:00:11.2]} 31. Rxd5 {[%clk 0:00:14.5]} 31... Qxe5
{[%clk 0:00:11.4]} 32. Rxe5 {[%clk 0:00:16.4]} 32... Rd1+ {[%clk 0:00:12.5]} 33.
Kh2 {[%clk 0:00:17.2]} 33... Rd2 {[%clk 0:00:14.4]} 34. Rc5 {[%clk 0:00:10.1]}
34... Rxf2 {[%clk 0:00:15.3]} 35. Kg3 {[%clk 0:00:08.5]} 35... Rf7 {[%clk
0:00:16.1]} 36. Re5 {[%clk 0:00:06.8]} 36... Kc7 {[%clk 0:00:16.3]} 37. c3
{[%clk 0:00:08.2]} 37... Kd6 {[%clk 0:00:17.3]} 38. Re2 {[%clk 0:00:09.4]} 38...
Ne7 {[%clk 0:00:18.1]} 39. b4 {[%clk 0:00:09.9]} 39... Nf5+ {[%clk 0:00:18.9]}
40. Kh2 {[%clk 0:00:11.5]} 40... Ra7 {[%clk 0:00:14.7]} 41. c4 {[%clk 0:00:09]}
41... Ra4 {[%clk 0:00:13.6]} 42. Rd2+ {[%clk 0:00:10.5]} 42... Ke6 {[%clk
0:00:10.7]} 43. Re2+ {[%clk 0:00:09.5]} 43... Kf6 {[%clk 0:00:09.6]} 44. g4
{[%clk 0:00:09.8]} 44... Nd4 {[%clk 0:00:07.3]} 45. Re4 {[%clk 0:00:11.2]} 45...
Nf3+ {[%clk 0:00:08.5]} 46. Kg3 {[%clk 0:00:12.6]} 46... Nd2 {[%clk 0:00:10.1]}
47. Rf4+ {[%clk 0:00:12.9]} 47... Ke5 {[%clk 0:00:11.4]} 48. c5 {[%clk
0:00:08.1]} 48... Ne4+ {[%clk 0:00:11.7]} 49. Kf3 {[%clk 0:00:09.6]} 49... Rxb4
{[%clk 0:00:10.3]} 50. Rf5+ {[%clk 0:00:09.6]} 50... Kd4 {[%clk 0:00:10.5]} 51.
c6 {[%clk 0:00:10.4]} 51... Rb3+ {[%clk 0:00:11.5]} 52. Kg2 {[%clk 0:00:07.8]}
52... Rxb2+ {[%clk 0:00:12.6]} 53. Kg1 {[%clk 0:00:09.7]} 53... Rc2 {[%clk
0:00:12.1]} 54. Rf7 {[%clk 0:00:09.5]} 54... g5 {[%clk 0:00:13.1]} 55. c7 {[%clk
0:00:11]} 55... Ke3 {[%clk 0:00:12.7]} 56. Rh7 {[%clk 0:00:11.6]} 56... Kf3
{[%clk 0:00:09.9]} 57. Rf7+ {[%clk 0:00:13.1]} 57... Kg3 {[%clk 0:00:10.3]} 58.
Kf1 {[%clk 0:00:14.8]} 58... Nd2+ {[%clk 0:00:03.8]} 59. Ke2 {[%clk 0:00:12.9]}
59... Nf3+ {[%clk 0:00:03.3]} 60. Kd3 {[%clk 0:00:13.5]} 60... Rc1 {[%clk
0:00:03]} 61. Ke4 {[%clk 0:00:15]} 61... Nh4 {[%clk 0:00:03.1]} 62. Kd5 {[%clk
0:00:12.7]} 62... Kxh3 {[%clk 0:00:04.5]} 63. Kd6 {[%clk 0:00:14.2]} 63... Kxg4
{[%clk 0:00:04.8]} 64. Rf6 {[%clk 0:00:12.7]} 64... Nf5+ {[%clk 0:00:05.5]} 65.
Kd7 {[%clk 0:00:13.9]} 65... Rd1+ {[%clk 0:00:06.2]} 66. Ke8 {[%clk 0:00:10.9]}
66... Rc1 {[%clk 0:00:05.1]} 67. Kd7 {[%clk 0:00:12.2]} 67... Rd1+ {[%clk
0:00:05]} 68. Ke8 {[%clk 0:00:12.7]} 68... Re1+ {[%clk 0:00:05.5]} 69. Kd7
{[%clk 0:00:13.7]} 69... Re7+ {[%clk 0:00:06]} 70. Kd8 {[%clk 0:00:14.4]} 70...
Rxc7 {[%clk 0:00:07.1]} 71. Kxc7 {[%clk 0:00:15.8]} 71... h5 {[%clk 0:00:09]}
72. Kc6 {[%clk 0:00:17.4]} 72... h4 {[%clk 0:00:10.3]} 73. Kd5 {[%clk
0:00:18.9]} 73... h3 {[%clk 0:00:11.6]} 74. Ra6 {[%clk 0:00:20.5]} 74... h2
{[%clk 0:00:11.6]} 75. Ra1 {[%clk 0:00:22.4]} 0-1

[Event "*** Qualifier 4: Titled Tuesday 3|2 Blitz"]
[Site "Chess.com"]
[Date "2017.04.25"]
[Round "9"]
[White "Oneofmyturns"]
[Black "VMikhalevski"]
[Result "1/2-1/2"]
[WhiteElo "2517"]
[BlackElo "2552"]
[TimeControl "180+2"]
[EndTime "15:04:36 PDT"]
[Termination "Game drawn by 50-move rule"]

1. d4 {[%clk 0:03:02]} 1... Nf6 {[%clk 0:03:00.3]} 2. c4 {[%clk 0:03:03.3]} 2...
g6 {[%clk 0:03:00.7]} 3. f3 {[%clk 0:03:04.5]} 3... Nh5 {[%clk 0:03:00.7]} 4.
Be3 {[%clk 0:02:37.7]} 4... Bg7 {[%clk 0:02:55.9]} 5. g4 {[%clk 0:02:35.1]} 5...
Nf6 {[%clk 0:02:54.1]} 6. Nc3 {[%clk 0:02:35.3]} 6... d6 {[%clk 0:02:47.7]} 7.
Nh3 {[%clk 0:02:34.5]} 7... h5 {[%clk 0:02:43.5]} 8. g5 {[%clk 0:02:35]} 8...
Nh7 {[%clk 0:02:44.3]} 9. Qd2 {[%clk 0:02:27.1]} 9... Nc6 {[%clk 0:02:42.8]} 10.
f4 {[%clk 0:02:23.5]} 10... O-O {[%clk 0:02:28.5]} 11. Rd1 {[%clk 0:02:13.4]}
11... Bf5 {[%clk 0:02:23.9]} 12. Nf2 {[%clk 0:02:11.2]} 12... Nb4 {[%clk
0:02:20.2]} 13. Rc1 {[%clk 0:01:51.6]} 13... c5 {[%clk 0:02:12.8]} 14. dxc5
{[%clk 0:01:41.5]} 14... dxc5 {[%clk 0:02:13.3]} 15. Bxc5 {[%clk 0:01:42.6]}
15... Qxd2+ {[%clk 0:01:49.8]} 16. Kxd2 {[%clk 0:01:44.5]} 16... Rfd8+ {[%clk
0:01:50.6]} 17. Nd3 {[%clk 0:01:32.5]} 17... Nxd3 {[%clk 0:01:38.9]} 18. exd3
{[%clk 0:01:34.4]} 18... e5 {[%clk 0:01:40.1]} 19. Be3 {[%clk 0:01:07.1]} 19...
Be6 {[%clk 0:01:31.1]} 20. Kc2 {[%clk 0:01:00.2]} 20... Rac8 {[%clk 0:01:25.8]}
21. Bg2 {[%clk 0:00:50.2]} 21... b5 {[%clk 0:01:21.4]} 22. Nxb5 {[%clk
0:00:45.1]} 22... Bf5 {[%clk 0:01:22.2]} 23. Be4 {[%clk 0:00:33.6]} 23... Bxe4
{[%clk 0:01:17.6]} 24. dxe4 {[%clk 0:00:35.5]} 24... Rxc4+ {[%clk 0:01:18.7]}
25. Nc3 {[%clk 0:00:32]} 25... exf4 {[%clk 0:01:19.1]} 26. Bxf4 {[%clk
0:00:33.9]} 26... Bxc3 {[%clk 0:01:17.1]} 27. bxc3 {[%clk 0:00:35.8]} 27... Rxe4
{[%clk 0:01:18.2]} 28. Rhf1 {[%clk 0:00:23.5]} 28... Nf8 {[%clk 0:01:12]} 29.
Rce1 {[%clk 0:00:22.1]} 29... Ra4 {[%clk 0:01:08.5]} 30. Kb3 {[%clk 0:00:22.1]}
30... Ra6 {[%clk 0:01:08.4]} 31. Re7 {[%clk 0:00:20.4]} 31... Ne6 {[%clk
0:01:02]} 32. Be5 {[%clk 0:00:21.4]} 32... Nxg5 {[%clk 0:00:59.3]} 33. h4 {[%clk
0:00:21.6]} 33... Re6 {[%clk 0:00:58.9]} 34. Bf6 {[%clk 0:00:20.9]} 34... Rb8+
{[%clk 0:00:56.3]} 35. Kc2 {[%clk 0:00:20.1]} 35... Rxe7 {[%clk 0:00:54.7]} 36.
Bxe7 {[%clk 0:00:22]} 36... Ne6 {[%clk 0:00:52.7]} 37. Rd1 {[%clk 0:00:18.4]}
37... Re8 {[%clk 0:00:35.7]} 38. Bf6 {[%clk 0:00:19.4]} 38... Nc5 {[%clk
0:00:36.4]} 39. Rd5 {[%clk 0:00:12.9]} 39... Ne4 {[%clk 0:00:34.9]} 40. Bd4
{[%clk 0:00:14]} 40... a6 {[%clk 0:00:30.4]} 41. Rd7 {[%clk 0:00:13.9]} 41... f5
{[%clk 0:00:24.8]} 42. Rg7+ {[%clk 0:00:14]} 42... Kf8 {[%clk 0:00:26]} 43. Rxg6
{[%clk 0:00:15.9]} 43... f4 {[%clk 0:00:23.9]} 44. Rh6 {[%clk 0:00:17.1]} 44...
Kf7 {[%clk 0:00:23.6]} 45. Rxh5 {[%clk 0:00:17.1]} 45... Kg6 {[%clk 0:00:24.1]}
46. Ra5 {[%clk 0:00:17.5]} 46... f3 {[%clk 0:00:24.2]} 47. h5+ {[%clk
0:00:18.5]} 47... Kh6 {[%clk 0:00:22.6]} 48. Be3+ {[%clk 0:00:18.9]} 48... Kh7
{[%clk 0:00:21.2]} 49. Rxa6 {[%clk 0:00:20.3]} 49... f2 {[%clk 0:00:20.8]} 50.
Ra7+ {[%clk 0:00:21.7]} 50... Kg8 {[%clk 0:00:21]} 51. Bxf2 {[%clk 0:00:22.6]}
51... Nxf2 {[%clk 0:00:21.7]} 52. a4 {[%clk 0:00:24]} 52... Ne4 {[%clk
0:00:20.3]} 53. Kd3 {[%clk 0:00:22]} 53... Nc5+ {[%clk 0:00:18.3]} 54. Kd4
{[%clk 0:00:23]} 54... Rc8 {[%clk 0:00:19]} 55. c4 {[%clk 0:00:21.3]} 55... Ne6+
{[%clk 0:00:15.6]} 56. Kd5 {[%clk 0:00:19.3]} 56... Nf4+ {[%clk 0:00:16.1]} 57.
Kd4 {[%clk 0:00:20.4]} 57... Nxh5 {[%clk 0:00:17]} 58. c5 {[%clk 0:00:21.5]}
58... Nf4 {[%clk 0:00:17.5]} 59. Ra5 {[%clk 0:00:15.8]} 59... Kf7 {[%clk
0:00:16.7]} 60. Rb5 {[%clk 0:00:15.4]} 60... Ke6 {[%clk 0:00:16.3]} 61. a5
{[%clk 0:00:14]} 61... Rd8+ {[%clk 0:00:15.1]} 62. Ke4 {[%clk 0:00:14.3]} 62...
Nd5 {[%clk 0:00:15.8]} 63. Rb7 {[%clk 0:00:11.7]} 63... Nc3+ {[%clk 0:00:15.1]}
64. Ke3 {[%clk 0:00:12.9]} 64... Kd5 {[%clk 0:00:15.7]} 65. a6 {[%clk
0:00:13.9]} 65... Kxc5 {[%clk 0:00:15]} 66. a7 {[%clk 0:00:15.1]} 66... Nd5+
{[%clk 0:00:15.9]} 67. Ke4 {[%clk 0:00:14.4]} 67... Ra8 {[%clk 0:00:15.2]} 68.
Ke5 {[%clk 0:00:10.3]} 68... Kc6 {[%clk 0:00:15.9]} 69. Rb1 {[%clk 0:00:10]}
69... Nc7 {[%clk 0:00:14.6]} 70. Rc1+ {[%clk 0:00:10.1]} 70... Kb6 {[%clk
0:00:15.5]} 71. Rb1+ {[%clk 0:00:11.5]} 71... Nb5 {[%clk 0:00:16.5]} 72. Ra1
{[%clk 0:00:11.4]} 72... Nxa7 {[%clk 0:00:17.3]} 73. Rb1+ {[%clk 0:00:11.3]}
73... Nb5 {[%clk 0:00:18.3]} 74. Rc1 {[%clk 0:00:12.4]} 74... Re8+ {[%clk
0:00:18.9]} 75. Kd5 {[%clk 0:00:13.6]} 75... Rd8+ {[%clk 0:00:20.1]} 76. Ke5
{[%clk 0:00:14.3]} 76... Na7 {[%clk 0:00:20.4]} 77. Rb1+ {[%clk 0:00:10.8]}
77... Kc7 {[%clk 0:00:20.9]} 78. Rc1+ {[%clk 0:00:12.1]} 78... Nc6+ {[%clk
0:00:22.4]} 79. Ke6 {[%clk 0:00:13.4]} 79... Rd6+ {[%clk 0:00:22.4]} 80. Kf5
{[%clk 0:00:14.8]} 80... Kd7 {[%clk 0:00:23.2]} 81. Kf4 {[%clk 0:00:15.2]} 81...
Ke6 {[%clk 0:00:23.9]} 82. Re1+ {[%clk 0:00:15.5]} 82... Kf6 {[%clk 0:00:24.7]}
83. Re8 {[%clk 0:00:17]} 83... Ne7 {[%clk 0:00:25.1]} 84. Rf8+ {[%clk
0:00:16.9]} 84... Ke6 {[%clk 0:00:26.1]} 85. Re8 {[%clk 0:00:18.2]} 85... Ra6
{[%clk 0:00:26.7]} 86. Ke4 {[%clk 0:00:19.2]} 86... Ra4+ {[%clk 0:00:27.5]} 87.
Ke3 {[%clk 0:00:20.6]} 87... Kd6 {[%clk 0:00:28.6]} 88. Rd8+ {[%clk 0:00:21.3]}
88... Ke5 {[%clk 0:00:28.7]} 89. Re8 {[%clk 0:00:22.7]} 89... Kf6 {[%clk
0:00:29.7]} 90. Rf8+ {[%clk 0:00:23.1]} 90... Kg5 {[%clk 0:00:30.8]} 91. Re8
{[%clk 0:00:23.7]} 91... Nf5+ {[%clk 0:00:31.5]} 92. Kd3 {[%clk 0:00:24.6]}
92... Kf4 {[%clk 0:00:32.2]} 93. Rf8 {[%clk 0:00:24.7]} 93... Rd4+ {[%clk
0:00:32.3]} 94. Kc3 {[%clk 0:00:25.4]} 94... Rd7 {[%clk 0:00:33.2]} 95. Re8
{[%clk 0:00:26.5]} 95... Nd6 {[%clk 0:00:34]} 96. Re1 {[%clk 0:00:25.9]} 96...
Ne4+ {[%clk 0:00:35]} 97. Kc4 {[%clk 0:00:26.3]} 97... Ke5 {[%clk 0:00:36]} 98.
Rh1 {[%clk 0:00:27.3]} 98... Rc7+ {[%clk 0:00:36.6]} 99. Kb4 {[%clk 0:00:28.3]}
99... Nf6 {[%clk 0:00:35.2]} 100. Re1+ {[%clk 0:00:26.6]} 100... Kd6 {[%clk
0:00:36.1]} 101. Rh1 {[%clk 0:00:21.7]} 101... Nd5+ {[%clk 0:00:36.8]} 102. Kb3
{[%clk 0:00:21.7]} 102... Rc3+ {[%clk 0:00:36.8]} 103. Kb2 {[%clk 0:00:23]}
103... Rg3 {[%clk 0:00:37.2]} 104. Rc1 {[%clk 0:00:21.2]} 104... Nb4 {[%clk
0:00:36.3]} 105. Rc3 {[%clk 0:00:21.5]} 105... Rg4 {[%clk 0:00:36.5]} 106. Kb3
{[%clk 0:00:22.5]} 106... Nc6 {[%clk 0:00:37.4]} 107. Kc2 {[%clk 0:00:21.7]}
107... Kd5 {[%clk 0:00:37.2]} 108. Kd2 {[%clk 0:00:19]} 108... Ne5 {[%clk
0:00:37.1]} 109. Rc8 {[%clk 0:00:18.7]} 109... Nc4+ {[%clk 0:00:36.8]} 110. Kd3
{[%clk 0:00:18.9]} 110... Rg3+ {[%clk 0:00:37.4]} 111. Ke2 {[%clk 0:00:20.1]}
111... Kd4 {[%clk 0:00:36.4]} 112. Rd8+ {[%clk 0:00:20.6]} 112... Ke4 {[%clk
0:00:37.4]} 113. Re8+ {[%clk 0:00:20.7]} 113... Ne5 {[%clk 0:00:38.2]} 114. Kd2
{[%clk 0:00:22.1]} 114... Ra3 {[%clk 0:00:36.1]} 115. Kc2 {[%clk 0:00:20.1]}
115... Kd4 {[%clk 0:00:32.3]} 116. Rd8+ {[%clk 0:00:20.5]} 116... Ke3 {[%clk
0:00:32.7]} 117. Re8 {[%clk 0:00:21.3]} 117... Ra5 {[%clk 0:00:33.8]} 118. Kc3
{[%clk 0:00:21.7]} 118... Ke4 {[%clk 0:00:31.6]} 119. Kb4 {[%clk 0:00:20.3]}
119... Ra1 {[%clk 0:00:32.3]} 120. Kc3 {[%clk 0:00:21.7]} 120... Rc1+ {[%clk
0:00:32.7]} 121. Kb2 {[%clk 0:00:16.7]} 121... Rc7 {[%clk 0:00:32.5]} 122. Kb3
{[%clk 0:00:17.8]} 122... Kd4 {[%clk 0:00:31.9]} 123. Rd8+ {[%clk 0:00:18.8]}
123... Nd7 {[%clk 0:00:32.9]} 124. Kb2 {[%clk 0:00:17.6]} 124... Kd3 {[%clk
0:00:33.6]} 125. Rh8 {[%clk 0:00:17.7]} 125... Rb7+ {[%clk 0:00:34.1]} 126. Kc1
{[%clk 0:00:16.4]} 126... Ne5 {[%clk 0:00:32.5]} 127. Rh3+ {[%clk 0:00:16.7]}
127... Kd4 {[%clk 0:00:33.6]} 128. Kc2 {[%clk 0:00:15]} 128... Rg7 {[%clk
0:00:28.5]} 129. Rh4+ {[%clk 0:00:15]} 129... Ke3 {[%clk 0:00:29.2]} 130. Rh3+
{[%clk 0:00:16.1]} 130... Nf3 {[%clk 0:00:30.1]} 131. Kc3 {[%clk 0:00:16.5]}
131... Rc7+ {[%clk 0:00:31]} 132. Kb4 {[%clk 0:00:17.5]} 132... Ke4 {[%clk
0:00:32.1]} 133. Kb5 {[%clk 0:00:16.8]} 133... Nd4+ {[%clk 0:00:31.2]} 134. Kb4
{[%clk 0:00:15.7]} 134... Nc6+ {[%clk 0:00:29.3]} 135. Kc5 {[%clk 0:00:15.4]}
135... Ne5+ {[%clk 0:00:29.4]} 136. Kb4 {[%clk 0:00:13]} 136... Kd5 {[%clk
0:00:26.8]} 137. Rh5 {[%clk 0:00:13.7]} 137... Rc4+ {[%clk 0:00:25.6]} 138. Kb3
{[%clk 0:00:14.6]} 138... Re4 {[%clk 0:00:25.6]} 139. Kc3 {[%clk 0:00:14.1]}
139... Kc5 {[%clk 0:00:26.6]} 140. Rh8 {[%clk 0:00:09.8]} 140... Re3+ {[%clk
0:00:27.1]} 141. Kc2 {[%clk 0:00:10.4]} 141... Nc6 {[%clk 0:00:23.6]} 142. Rc8
{[%clk 0:00:10.3]} 142... Kd5 {[%clk 0:00:24.1]} 143. Kd2 {[%clk 0:00:11.2]}
143... Rh3 {[%clk 0:00:24.1]} 144. Ke2 {[%clk 0:00:12.5]} 144... Nd4+ {[%clk
0:00:25.1]} 1/2-1/2

[Event "*** Qualifier 4: Titled Tuesday 3|2 Blitz"]
[Site "Chess.com"]
[Date "2017.04.25"]
[Round "10"]
[White "silverback96"]
[Black "politeplayer"]
[Result "1-0"]
[WhiteElo "2087"]
[BlackElo "2174"]
[TimeControl "180+2"]
[EndTime "15:09:25 PDT"]
[Termination "silverback96 won by resignation"]

1. Nf3 {[%clk 0:03:02]} 1... d5 {[%clk 0:02:59.8]} 2. g3 {[%clk 0:03:03.2]} 2...
Nf6 {[%clk 0:03:00.1]} 3. Bg2 {[%clk 0:03:05.1]} 3... e6 {[%clk 0:03:00.9]} 4.
O-O {[%clk 0:03:06.5]} 4... c5 {[%clk 0:03:02.5]} 5. c4 {[%clk 0:03:08]} 5...
Nc6 {[%clk 0:03:03.7]} 6. cxd5 {[%clk 0:03:08.7]} 6... exd5 {[%clk 0:03:05.2]}
7. d4 {[%clk 0:03:10.6]} 7... Be7 {[%clk 0:03:05.9]} 8. Nc3 {[%clk 0:03:12.2]}
8... O-O {[%clk 0:03:06.3]} 9. dxc5 {[%clk 0:03:14.1]} 9... Bxc5 {[%clk
0:03:05.9]} 10. Na4 {[%clk 0:03:16]} 10... Bd6 {[%clk 0:03:05.2]} 11. Be3 {[%clk
0:03:17.9]} 11... Re8 {[%clk 0:03:06.4]} 12. Rc1 {[%clk 0:03:18.6]} 12... Rxe3
{[%clk 0:03:04.3]} 13. fxe3 {[%clk 0:03:19.3]} 13... Ng4 {[%clk 0:03:05.7]} 14.
Qd3 {[%clk 0:03:15.5]} 14... Qe7 {[%clk 0:02:59.8]} 15. Rc3 {[%clk 0:03:13.8]}
15... Nb4 {[%clk 0:02:30]} 16. Qb1 {[%clk 0:03:14.4]} 16... Nxe3 {[%clk
0:02:22.1]} 17. Rfc1 {[%clk 0:03:12.5]} 17... Bf5 {[%clk 0:01:59.5]} 18. Qa1
{[%clk 0:02:59.5]} 18... b5 {[%clk 0:01:42.8]} 19. Nd4 {[%clk 0:02:58.1]} 19...
bxa4 {[%clk 0:01:28.6]} 20. Nxf5 {[%clk 0:02:58.4]} 20... Nxf5 {[%clk
0:01:28.9]} 21. Rc8+ {[%clk 0:02:59.4]} 21... Qe8 {[%clk 0:01:25]} 22. Rxe8+
{[%clk 0:02:59.2]} 22... Rxe8 {[%clk 0:01:26.4]} 23. a3 {[%clk 0:02:55]} 23...
Na6 {[%clk 0:01:10.9]} 24. Bxd5 {[%clk 0:02:56]} 24... Bc5+ {[%clk 0:01:02.7]}
25. Kh1 {[%clk 0:02:50.4]} 25... Rxe2 {[%clk 0:00:59.6]} 26. Bc4 {[%clk
0:02:50.5]} 26... Nc7 {[%clk 0:00:51.8]} 27. Bxe2 {[%clk 0:02:50.8]} 1-0

[Event "*** Qualifier 4: Titled Tuesday 3|2 Blitz"]
[Site "Chess.com"]
[Date "2017.04.25"]
[Round "10"]
[White "MyleneFarmer"]
[Black "Oneofmyturns"]
[Result "0-1"]
[WhiteElo "2348"]
[BlackElo "2522"]
[TimeControl "180+2"]
[EndTime "15:09:54 PDT"]
[Termination "Oneofmyturns won on time"]

1. b3 {[%clk 0:03:02]} 1... e5 {[%clk 0:02:59.3]} 2. Bb2 {[%clk 0:03:02.9]} 2...
Nc6 {[%clk 0:03:00.7]} 3. e3 {[%clk 0:03:04]} 3... Nf6 {[%clk 0:02:56.5]} 4. Bb5
{[%clk 0:03:03]} 4... d6 {[%clk 0:02:57.6]} 5. d4 {[%clk 0:03:00.6]} 5... exd4
{[%clk 0:02:56.7]} 6. exd4 {[%clk 0:03:01.8]} 6... a6 {[%clk 0:02:57.9]} 7. Bd3
{[%clk 0:02:59.4]} 7... Be7 {[%clk 0:02:58.4]} 8. a3 {[%clk 0:02:50.4]} 8... O-O
{[%clk 0:02:57.1]} 9. Ne2 {[%clk 0:02:51.6]} 9... d5 {[%clk 0:02:56.1]} 10. O-O
{[%clk 0:02:52.8]} 10... Bd6 {[%clk 0:02:56]} 11. Ng3 {[%clk 0:02:52.8]} 11...
Bg4 {[%clk 0:02:55.1]} 12. Qd2 {[%clk 0:02:47]} 12... Qd7 {[%clk 0:02:50.7]} 13.
Qg5 {[%clk 0:02:24.6]} 13... h6 {[%clk 0:02:45]} 14. Qh4 {[%clk 0:02:26]} 14...
Bf4 {[%clk 0:02:35.8]} 15. Bf5 {[%clk 0:02:09.6]} 15... Bxg3 {[%clk 0:02:28.7]}
16. Bxd7 {[%clk 0:02:08]} 16... Bxh4 {[%clk 0:02:28.5]} 17. Bxg4 {[%clk
0:02:06.7]} 17... Nxg4 {[%clk 0:02:22.6]} 0-1

[Event "*** Qualifier 4: Titled Tuesday 3|2 Blitz"]
[Site "Chess.com"]
[Date "2017.04.25"]
[Round "10"]
[White "FearlessKing64"]
[Black "Robin-Side"]
[Result "0-1"]
[WhiteElo "2090"]
[BlackElo "2294"]
[TimeControl "180+2"]
[EndTime "15:10:43 PDT"]
[Termination "Robin-Side won by resignation"]

1. e4 {[%clk 0:03:02]} 1... c5 {[%clk 0:03:00.9]} 2. Nf3 {[%clk 0:03:01.8]} 2...
Nc6 {[%clk 0:03:02.3]} 3. d4 {[%clk 0:03:02.6]} 3... cxd4 {[%clk 0:03:04.2]} 4.
Nxd4 {[%clk 0:03:04.2]} 4... e5 {[%clk 0:03:05.4]} 5. Nb5 {[%clk 0:03:04.7]}
5... d6 {[%clk 0:03:05.8]} 6. N1c3 {[%clk 0:03:05.3]} 6... a6 {[%clk 0:03:06.7]}
7. Na3 {[%clk 0:03:06.9]} 7... b5 {[%clk 0:03:07.4]} 8. Nd5 {[%clk 0:03:07.8]}
8... Nge7 {[%clk 0:03:08.5]} 9. c4 {[%clk 0:03:06.7]} 9... Nd4 {[%clk
0:03:06.8]} 10. Nc2 {[%clk 0:02:58.8]} 10... Nxd5 {[%clk 0:03:00.4]} 11. exd5
{[%clk 0:02:55.1]} 11... Nxc2+ {[%clk 0:02:39.9]} 12. Qxc2 {[%clk 0:02:53.7]}
12... bxc4 {[%clk 0:02:36.1]} 13. Bxc4 {[%clk 0:02:52.4]} 13... Be7 {[%clk
0:02:37]} 14. Bd3 {[%clk 0:02:49.1]} 14... Bb7 {[%clk 0:02:24.1]} 15. Bxh7
{[%clk 0:02:35.5]} 15... Qa5+ {[%clk 0:02:10]} 16. Bd2 {[%clk 0:02:29.5]} 16...
Qxd5 {[%clk 0:02:09.9]} 17. f3 {[%clk 0:02:30.4]} 17... g6 {[%clk 0:01:52.6]}
18. Bxg6 {[%clk 0:02:30.8]} 18... fxg6 {[%clk 0:01:53.4]} 19. Qxg6+ {[%clk
0:02:32.4]} 19... Qf7 {[%clk 0:01:51.8]} 20. Qd3 {[%clk 0:02:11.3]} 20... Rc8
{[%clk 0:01:37.1]} 21. O-O {[%clk 0:02:03.8]} 21... Qh7 {[%clk 0:01:16.1]} 22.
Qxh7 {[%clk 0:02:01.5]} 22... Rxh7 {[%clk 0:01:16.9]} 23. Rae1 {[%clk
0:01:44.5]} 23... Rc2 {[%clk 0:01:12.6]} 24. Bc3 {[%clk 0:01:44.7]} 24... Bd8
{[%clk 0:00:58.8]} 25. h3 {[%clk 0:01:36.9]} 25... Rg7 {[%clk 0:00:49.6]} 26.
Kh1 {[%clk 0:01:26.8]} 26... Rgxg2 {[%clk 0:00:45]} 0-1

[Event "*** Qualifier 4: Titled Tuesday 3|2 Blitz"]
[Site "Chess.com"]
[Date "2017.04.25"]
[Round "10"]
[White "rithwik2002"]
[Black "Gabrielian_Artur"]
[Result "0-1"]
[WhiteElo "1835"]
[BlackElo "2549"]
[TimeControl "180+2"]
[EndTime "15:11:01 PDT"]
[Termination "Gabrielian_Artur won on time"]

1. d4 {[%clk 0:03:01.3]} 1... Nf6 {[%clk 0:02:59]} 2. c4 {[%clk 0:03:02.1]} 2...
g6 {[%clk 0:02:53.6]} 3. f3 {[%clk 0:03:01.2]} 3... d5 {[%clk 0:02:46.4]} 4.
cxd5 {[%clk 0:03:03.1]} 4... Nxd5 {[%clk 0:02:47.4]} 5. e4 {[%clk 0:03:03.6]}
5... Nb6 {[%clk 0:02:48.7]} 6. Nc3 {[%clk 0:03:04.8]} 6... Bg7 {[%clk
0:02:50.1]} 7. Be3 {[%clk 0:03:06.4]} 7... O-O {[%clk 0:02:50.9]} 8. Qd2 {[%clk
0:03:07.8]} 8... Nc6 {[%clk 0:02:52.2]} 9. O-O-O {[%clk 0:03:08.8]} 9... f5
{[%clk 0:02:53]} 10. h4 {[%clk 0:02:31.5]} 10... fxe4 {[%clk 0:02:48.8]} 11. h5
{[%clk 0:02:29.2]} 11... gxh5 {[%clk 0:02:48.4]} 12. Rxh5 {[%clk 0:02:10.1]}
12... Bf5 {[%clk 0:02:44.6]} 13. Rg5 {[%clk 0:01:38.2]} 13... Bg6 {[%clk
0:02:38.9]} 14. Be2 {[%clk 0:01:31.6]} 14... e5 {[%clk 0:02:38.5]} 15. d5 {[%clk
0:01:20]} 15... Nd4 {[%clk 0:02:39.4]} 16. fxe4 {[%clk 0:01:12.7]} 16... c5
{[%clk 0:02:36.1]} 17. Nf3 {[%clk 0:00:59.2]} 17... Nd7 {[%clk 0:02:26.1]} 18.
Nh4 {[%clk 0:00:50.5]} 18... Qf6 {[%clk 0:02:16.4]} 19. Rh1 {[%clk 0:00:42]}
19... Rf7 {[%clk 0:02:06.3]} 20. Kb1 {[%clk 0:00:24.7]} 20... Nxe2 {[%clk
0:02:00.6]} 21. Qxe2 {[%clk 0:00:09.6]} 21... Raf8 {[%clk 0:02:00.2]} 22. Nf3
{[%clk 0:00:04.8]} 22... Qe7 {[%clk 0:01:55.3]} 23. Rg3 {[%clk 0:00:05]} 23...
Rf4 {[%clk 0:01:55.3]} 24. Rgh3 {[%clk 0:00:03.3]} 24... Nf6 {[%clk 0:01:51.7]}
25. Bxf4 {[%clk 0:00:03.4]} 25... exf4 {[%clk 0:01:53]} 0-1